fUST/lending_fUST_20240613
["ID","MTS","AMOUNT","RATE_DAILY","PERIOD"]
[329334496,1718254259167,-500.0,0.00018904,2]
[329334497,1718254259179,-500.0,0.00018904,2]
[329334498,1718254259192,-2127.73,0.00018904,2]
[329334499,1718254259208,-500.0,0.00018904,2]
[329334500,1718254259221,-564.68,0.00018904,2]
[329334501,1718254259233,-1214.33,0.00018904,2]
[329334502,1718254259245,-500.0,0.00018904,2]
[329334503,1718254259259,-1121.52,0.00018904,2]
[329334504,1718254259270,-500.0,0.00018904,2]
[329334505,1718254259284,-1059.12,0.00018904,2]
[329334506,1718254259299,-674.39,0.00018904,2]
[329334507,1718254259312,-524.35,0.00018904,2]
[329334508,1718254259324,-811.99,0.00018904,2]
[329334509,1718254259343,-500.0,0.00018904,2]
[329334510,1718254259376,-500.0,0.00018904,2]
[329334511,1718254259392,-1753.78,0.00018904,2]
[329334512,1718254259405,-380.54592618,0.00018904,2]
[329334513,1718254259419,-2947.56,0.00018904,2]
[329334514,1718254259432,-5102.62,0.00018904,2]
[329334515,1718254259447,-419.71001311,0.00018904,2]
[329334516,1718254259461,-628.81,0.00018904,2]
[329334517,1718254259486,-1214.34,0.00018904,2]
[329334518,1718254259500,-500.0,0.00018904,2]
[329334519,1718254259525,-3891.73,0.00018904,2]
[329334520,1718254259539,-1329.33,0.00018904,2]
[329334521,1718254259554,-500.0,0.00018904,2]
[329334522,1718254259572,-1578.675525,0.00018904,2]
[329334523,1718254259583,-634.13,0.00018904,2]
[329334524,1718254259600,-1578.675525,0.00018904,2]
[329334525,1718254259614,-2031.6,0.00018904,2]
[329334526,1718254259633,-500.0,0.00018904,2]
[329334527,1718254259645,-500.0,0.00018904,2]
[329334528,1718254259665,-150.0,0.00018905,2]
[329334529,1718254259677,-5282.5380268,0.00018973,2]
[329334530,1718254259694,-394.24290711,0.00019,2]
[329334531,1718254259713,-194.71270542,0.00019,2]
[329334532,1718254259728,-7271.83096458,0.00019,2]
[329334533,1718254259743,-8970.83433799,0.00019,2]
[329334534,1718254259762,-151.0,0.00019,2]
[329334535,1718254259796,-151.0,0.00019,2]
[329334536,1718254259813,-569.721875,0.00019,2]
[329334537,1718254259827,-569.721875,0.00019,2]
[329334538,1718254259846,-151.0,0.00019,2]
[329334539,1718254259864,-263.264136,0.00019,2]
[329334540,1718254259887,-326.944004,0.00019,2]
[329334541,1718254259905,-326.944004,0.00019,2]
[329334542,1718254259921,-151.0,0.00019,2]
[329334543,1718254259932,-151.0,0.00019,2]
[329334544,1718254259946,-457.251663,0.00019,2]
[329334545,1718254259960,-457.251663,0.00019,2]
[329334546,1718254259977,-151.0,0.00019,2]
[329334547,1718254260002,-1019.512331,0.00019,2]
[329334548,1718254260052,-1019.512331,0.00019,2]
[329334549,1718254260082,-151.0,0.00019,2]
[329334550,1718254260095,-151.0,0.00019,2]
[329334551,1718254260123,-593.511182,0.00019,2]
[329334552,1718254260135,-593.511182,0.00019,2]
[329334553,1718254260146,-325.3490083,0.0001902,2]
[329334554,1718254260162,-50000.74587109,0.00019076,2]
[329334555,1718254260176,-152.311017,0.00019076,2]
[329334556,1718254260194,-153.574952,0.00019076,2]
[329334557,1718254260213,-151.0,0.00019076,2]
[329334558,1718254260241,-1173.980648,0.00019076,2]
[329334559,1718254260277,-1173.980648,0.00019076,2]
[329334560,1718254260295,-326.944004,0.00019076,2]
[329334561,1718254260311,-326.944004,0.00019076,2]
[329334562,1718254260328,-151.0,0.00019076,2]
[329334563,1718254260346,-457.251663,0.00019076,2]
[329334564,1718254260395,-457.251663,0.00019076,2]
[329334565,1718254260420,-151.0,0.00019076,2]
[329334566,1718254260433,-295.79539,0.00019076,2]
[329334567,1718254260448,-295.79539,0.00019076,2]
[329334568,1718254260466,-580.245543,0.00019076,2]
[329334569,1718254260489,-580.245543,0.00019076,2]
[329334570,1718254260503,-151.0,0.00019076,2]
[329334571,1718254260516,-1578.675525,0.00019076,2]
[329334572,1718254260546,-650.84498844,0.00019076,2]
[329334573,1718254260579,-927.83053656,0.00019076,2]
[329334574,1718254260604,-151.0,0.00019076,2]
[329334575,1718254260621,-240.1475,0.00019082,2]
[329334576,1718254260639,-806.7,0.00019091,2]
[329334577,1718254260654,-589.74741785,0.00019177,2]
[329334578,1718254260669,-500.0,0.00019178,2]
[329334579,1718254260683,-334.57454542,0.00019178,2]
[329334580,1718254383685,8986.6695919,9.999e-05,2]
[329334594,1718255162271,273.37336231,9.9e-05,2]
[329334595,1718255185043,273.37336231,9.9e-05,2]
[329334596,1718255193076,273.37336231,9.9e-05,2]
[329334597,1718255201227,273.37336231,9.9e-05,2]
[329334598,1718255206146,-226.4009037,0.00015671,2]
[329334599,1718255206171,-0.00140052,0.00016437,2]
[329334600,1718255209062,273.37336231,9.9e-05,2]
[329334601,1718255217327,273.37336231,9.9e-05,2]
[329334602,1718255225330,273.37336231,9.9e-05,2]
[329334603,1718255233463,273.37336231,9.9e-05,2]
[329334604,1718255241963,273.37336231,9.9e-05,2]
[329334605,1718255257398,273.37336231,9.9e-05,2]
[329334606,1718255265375,273.37336231,9.9e-05,2]
[329334607,1718255282698,273.37336231,9.9e-05,2]
[329334608,1718255291219,273.37336231,9.9e-05,2]
[329334609,1718255299516,273.37336231,9.9e-05,2]
[329334610,1718255307529,273.37336231,9.9e-05,2]
[329334611,1718255315650,273.37336231,9.9e-05,2]
[329334612,1718255324295,273.37336231,9.9e-05,2]
[329334613,1718255332504,273.37336231,9.9e-05,2]
[329334614,1718255341511,273.37336231,9.9e-05,2]
[329334615,1718255352374,273.37336231,9.9e-05,2]
[329334616,1718255361817,273.37336231,9.9e-05,2]
[329334617,1718255369199,273.37336231,9.9e-05,2]
[329334618,1718255377836,273.37336231,9.9e-05,2]
[329334619,1718255386193,273.37336231,9.9e-05,2]
[329334620,1718255394871,273.37336231,9.9e-05,2]
[329334621,1718255403738,273.37336231,9.9e-05,2]
[329334622,1718255411906,273.37336231,9.9e-05,2]
[329334623,1718255420117,273.37336231,9.9e-05,2]
[329334624,1718255428163,273.37336231,9.9e-05,2]
[329334695,1718255434537,-457.46645917,0.00016338,2]
[329334697,1718255434549,-165.01236258,0.00016437,2]
[329334699,1718255434562,-300.0,0.00016437,2]
[329334701,1718255434575,-500.0,0.00016438,2]
[329334703,1718255434586,-500.0,0.00016438,2]
[329334706,1718255434604,-500.0,0.00016438,2]
[329334708,1718255434628,-176.52940367,0.00016438,2]
[329334710,1718255434640,-501.90984678,0.00016438,2]
[329334712,1718255434658,-500.0,0.00016438,2]
[329334714,1718255434673,-500.0,0.00016438,2]
[329334715,1718255434686,-500.0,0.00016438,2]
[329334717,1718255434702,-500.0,0.00016438,2]
[329334719,1718255434732,-510.06784242,0.00016438,2]
[329334721,1718255434749,-501.69543776,0.00016438,2]
[329334724,1718255434782,-500.0,0.00016438,2]
[329334726,1718255434793,-500.0,0.00016438,2]
[329334727,1718255434803,-500.0,0.00016438,2]
[329334730,1718255434821,-500.0,0.00016438,2]
[329334731,1718255434832,-500.0,0.00016438,2]
[329334733,1718255434845,-250.0,0.00016438,2]
[329334736,1718255434868,-500.0,0.00016438,2]
[329334738,1718255434883,-500.0,0.00016438,2]
[329334740,1718255434909,-500.0,0.00016438,2]
[329334742,1718255434933,-500.0,0.00016438,2]
[329334743,1718255434944,-500.0,0.00016438,2]
[329334745,1718255434954,-500.0,0.00016438,2]
[329334747,1718255434966,-500.0,0.00016438,2]
[329334749,1718255434977,-500.0,0.00016438,2]
[329334751,1718255434988,-500.0,0.00016438,2]
[329334752,1718255435002,-503.48220934,0.00016438,2]
[329334753,1718255435017,-380.47919137,0.00016438,2]
[329334755,1718255435029,-635.65099795,0.00016438,2]
[329334757,1718255435041,-307.13795702,0.00016438,2]
[329334759,1718255435056,-500.0,0.00016438,2]
[329334761,1718255435068,-502.98283459,0.00016438,2]
[329334763,1718255435089,-500.0,0.00016438,2]
[329334765,1718255435107,-500.0,0.00016438,2]
[329334767,1718255435138,-500.0,0.00016438,2]
[329334768,1718255435148,-500.0,0.00016438,2]
[329334770,1718255435159,-491.23478438,0.00016438,2]
[329334772,1718255435176,-500.0,0.00016438,2]
[329334774,1718255435188,-500.0,0.00016438,2]
[329334776,1718255435209,-502.64235201,0.00016438,2]
[329334778,1718255435229,-512.49,0.00016438,2]
[329334779,1718255435241,-338.11908651,0.00016438,2]
[329334781,1718255435256,-500.0,0.00016438,2]
[329334783,1718255435275,-175.78644244,0.00016438,2]
[329334785,1718255435291,-500.0,0.00016438,2]
[329334786,1718255435301,-515.15991702,0.00016438,2]
[329334788,1718255435319,-500.0,0.00016438,2]
[329334790,1718255435331,-500.0,0.00016438,2]
[329334792,1718255435353,-234.00502142,0.00016438,2]
[329334795,1718255435365,-500.0,0.00016438,2]
[329334796,1718255435383,-500.0,0.00016438,2]
[329334798,1718255435403,-500.0,0.00016438,2]
[329334799,1718255435420,-501.89141202,0.00016438,2]
[329334802,1718255435444,-500.0,0.00016438,2]
[329334804,1718255435467,-500.0,0.00016438,2]
[329334806,1718255435501,-500.0,0.00016438,2]
[329334809,1718255435513,-500.0,0.00016438,2]
[329334810,1718255435527,-500.0,0.00016438,2]
[329334812,1718255435540,-500.0,0.00016438,2]
[329334813,1718255435552,-500.0,0.00016438,2]
[329334814,1718255435567,-520.22200289,0.00016438,2]
[329334815,1718255435578,-500.0,0.00016438,2]
[329334816,1718255435588,-500.0,0.00016438,2]
[329334817,1718255435600,-87.08314407,0.00016438,2]
[329334819,1718255435624,-417.42757665,0.00016438,2]
[329334820,1718255435644,-500.0,0.00016438,2]
[329334821,1718255435660,-271.20380518,0.00016438,2]
[329334824,1718255436866,273.37336231,9.9e-05,2]
[329334830,1718255443127,-228.79619482,0.00016438,2]
[329334831,1718255443139,-500.0,0.00016438,2]
[329334832,1718255443150,-500.0,0.00016438,2]
[329334833,1718255443177,-500.0,0.00016438,2]
[329334834,1718255443191,-500.0,0.00016438,2]
[329334835,1718255443225,-500.0,0.00016438,2]
[329334836,1718255443268,-500.0,0.00016438,2]
[329334837,1718255443290,-276.34329756,0.00016438,2]
[329334838,1718255443303,-223.65670244,0.00016438,2]
[329334839,1718255443317,-500.0,0.00016438,2]
[329334840,1718255443332,-502.4270916,0.00016438,2]
[329334841,1718255443346,-500.0,0.00016438,2]
[329334842,1718255443366,-500.0,0.00016438,2]
[329334843,1718255443388,-500.0,0.00016438,2]
[329334844,1718255443404,-136.81191577,0.00016438,2]
[329334845,1718255443425,-363.18808423,0.00016438,2]
[329334846,1718255443437,-240.81191577,0.00016438,2]
[329334848,1718255443518,-259.18808423,0.00016438,2]
[329334849,1718255443536,-500.0,0.00016438,2]
[329334850,1718255443556,-500.0,0.00016438,2]
[329334851,1718255443581,-501.78028765,0.00016438,2]
[329334852,1718255443609,-500.0,0.00016438,2]
[329334853,1718255443640,-1792.03162812,0.00016438,2]
[329334854,1718255443659,-88.90837188,0.00016438,2]
[329334855,1718255443696,-500.0,0.00016438,2]
[329334856,1718255443734,-500.0,0.00016438,2]
[329334857,1718255443753,-500.0,0.00016438,2]
[329334858,1718255443793,-518.29965851,0.00016438,2]
[329334859,1718255443829,-501.00794981,0.00016438,2]
[329334860,1718255443864,-500.0,0.00016438,2]
[329334861,1718255443887,-500.0,0.00016438,2]
[329334862,1718255443913,-472.40038164,0.00016438,2]
[329334863,1718255443936,-27.59961836,0.00016438,2]
[329334864,1718255443971,-500.0,0.00016438,2]
[329334865,1718255443999,-500.0,0.00016438,2]
[329334866,1718255444023,-317.54867848,0.00016438,2]
[329334868,1718255445407,273.37336231,9.9e-05,2]
[329334869,1718255446158,-182.45132152,0.00016438,2]
[329334870,1718255446172,-500.0,0.00016438,2]
[329334871,1718255446185,-500.0,0.00016438,2]
[329334872,1718255446197,-503.20683974,0.00016438,2]
[329334873,1718255446213,-500.0,0.00016438,2]
[329334874,1718255446230,-500.0,0.00016438,2]
[329334875,1718255446248,-500.0,0.00016438,2]
[329334876,1718255446269,-500.0,0.00016438,2]
[329334877,1718255446279,-500.0,0.00016438,2]
[329334878,1718255446294,-500.0,0.00016438,2]
[329334879,1718255446308,-500.0,0.00016438,2]
[329334880,1718255446322,-500.0,0.00016438,2]
[329334881,1718255446345,-500.0,0.00016438,2]
[329334882,1718255446358,-500.0,0.00016438,2]
[329334883,1718255446385,-502.46134025,0.00016438,2]
[329334884,1718255446396,-500.0,0.00016438,2]
[329334885,1718255446407,-500.0,0.00016438,2]
[329334886,1718255446417,-327.51336619,0.00016438,2]
[329334888,1718255448863,-172.48663381,0.00016438,2]
[329334889,1718255448876,-129.09839471,0.00016438,2]
[329334890,1718255449074,-370.90160529,0.00016438,2]
[329334891,1718255449086,-500.0,0.00016438,2]
[329334893,1718255449098,-500.0,0.00016438,2]
[329334895,1718255449123,-579.4,0.00016438,2]
[329334897,1718255449133,-500.0,0.00016438,2]
[329334898,1718255449156,-501.0769235,0.00016438,2]
[329334899,1718255449182,-500.0,0.00016438,2]
[329334900,1718255449212,-500.0,0.00016438,2]
[329334901,1718255449227,-500.0,0.00016438,2]
[329334902,1718255449244,-500.0,0.00016438,2]
[329334903,1718255449267,-500.0,0.00016438,2]
[329334904,1718255449312,-500.0,0.00016438,2]
[329334905,1718255449324,-500.0,0.00016438,2]
[329334906,1718255449337,-500.0,0.00016438,2]
[329334907,1718255449368,-500.0,0.00016438,2]
[329334908,1718255449380,-500.0,0.00016438,2]
[329334909,1718255449392,-540.44613334,0.00016438,2]
[329334910,1718255449419,-500.0,0.00016438,2]
[329334911,1718255449440,-500.0,0.00016438,2]
[329334912,1718255449461,-500.0,0.00016438,2]
[329334913,1718255449475,-500.0,0.00016438,2]
[329334914,1718255449514,-506.21171746,0.00016438,2]
[329334915,1718255449534,-500.0,0.00016438,2]
[329334916,1718255449551,-500.0,0.00016438,2]
[329334917,1718255449608,-507.03697536,0.00016438,2]
[329334918,1718255449630,-500.0,0.00016438,2]
[329334919,1718255449692,-500.0,0.00016438,2]
[329334920,1718255449717,-236.32400074,0.00016438,2]
[329334921,1718255449729,-500.0,0.00016438,2]
[329334922,1718255449746,-500.0,0.00016438,2]
[329334923,1718255449765,-500.0,0.00016438,2]
[329334924,1718255449777,-500.0,0.00016438,2]
[329334925,1718255449793,-500.0,0.00016438,2]
[329334926,1718255449815,-243.35787975,0.00016438,2]
[329334927,1718255449828,-500.0,0.00016438,2]
[329334928,1718255449846,-1083.37,0.00016438,2]
[329334929,1718255449859,-500.0,0.00016438,2]
[329334930,1718255449875,-500.0,0.00016438,2]
[329334931,1718255449892,-500.0,0.00016438,2]
[329334932,1718255449906,-531.0,0.00016438,2]
[329334933,1718255449920,-644.04,0.00016438,2]
[329334934,1718255449933,-644.04,0.00016438,2]
[329334935,1718255449946,-644.04,0.00016438,2]
[329334936,1718255449958,-500.0,0.00016438,2]
[329334937,1718255449971,-500.0,0.00016438,2]
[329334938,1718255449983,-500.0,0.00016438,2]
[329334939,1718255449995,-500.0,0.00016438,2]
[329334940,1718255450009,-1083.35,0.00016438,2]
[329334941,1718255450023,-963.51,0.00016438,2]
[329334942,1718255450035,-542.05,0.00016438,2]
[329334943,1718255450053,-501.4491718,0.00016438,2]
[329334944,1718255450064,-500.0,0.00016438,2]
[329334945,1718255450084,-503.71952875,0.00016438,2]
[329334946,1718255450096,-504.7553571,0.00016438,2]
[329334947,1718255450109,-661.67,0.00016438,2]
[329334948,1718255450126,-500.0,0.00016438,2]
[329334949,1718255450141,-500.0,0.00016438,2]
[329334950,1718255450157,-500.0,0.00016438,2]
[329334951,1718255450170,-500.0,0.00016438,2]
[329334952,1718255450184,-503.1678431,0.00016438,2]
[329334953,1718255450196,-501.30920121,0.00016438,2]
[329334954,1718255450217,-500.0,0.00016438,2]
[329334955,1718255450234,-500.0,0.00016438,2]
[329334956,1718255450251,-501.61180384,0.00016438,2]
[329334957,1718255450268,-500.0,0.00016438,2]
[329334958,1718255450282,-500.0,0.00016438,2]
[329334959,1718255450294,-500.0,0.00016438,2]
[329334960,1718255450308,-838.8,0.00016438,2]
[329334961,1718255450318,-500.0,0.00016438,2]
[329334962,1718255450329,-500.0,0.00016438,2]
[329334963,1718255450344,-500.0,0.00016438,2]
[329334964,1718255450361,-500.0,0.00016438,2]
[329334965,1718255450375,-500.0,0.00016438,2]
[329334966,1718255450393,-500.0,0.00016438,2]
[329334967,1718255450410,-500.0,0.00016438,2]
[329334968,1718255450424,-500.0,0.00016438,2]
[329334969,1718255450436,-500.0,0.00016438,2]
[329334970,1718255450447,-1534.55,0.00016438,2]
[329334971,1718255450476,-500.0,0.00016438,2]
[329334972,1718255450504,-502.80042173,0.00016438,2]
[329334973,1718255450517,-500.0,0.00016438,2]
[329334974,1718255450534,-500.0,0.00016438,2]
[329334975,1718255450551,-500.0,0.00016438,2]
[329334976,1718255450562,-500.0,0.00016438,2]
[329334977,1718255450575,-500.0,0.00016438,2]
[329334978,1718255450587,-503.03369081,0.00016438,2]
[329334979,1718255450598,-500.0,0.00016438,2]
[329334980,1718255450610,-500.0,0.00016438,2]
[329334981,1718255450623,-3983.94,0.00016438,2]
[329334982,1718255450638,-550.21,0.00016438,2]
[329334983,1718255450653,-500.0,0.00016438,2]
[329334984,1718255450693,-500.0,0.00016438,2]
[329334985,1718255450713,-2579.12,0.00016438,2]
[329334986,1718255450725,-4764.33,0.00016438,2]
[329334987,1718255450737,-500.0,0.00016438,2]
[329334988,1718255450750,-500.0,0.00016438,2]
[329334989,1718255450761,-500.0,0.00016438,2]
[329334990,1718255450775,-500.0,0.00016438,2]
[329334991,1718255450790,-500.0,0.00016438,2]
[329334992,1718255450809,-500.0,0.00016438,2]
[329334993,1718255450823,-500.0,0.00016438,2]
[329334994,1718255450838,-500.0,0.00016438,2]
[329334995,1718255450855,-500.0,0.00016438,2]
[329334996,1718255450884,-500.0,0.00016438,2]
[329334997,1718255450897,-1062.54,0.00016438,2]
[329334998,1718255450912,-504.16272299,0.00016438,2]
[329334999,1718255450926,-500.0,0.00016438,2]
[329335000,1718255450940,-500.0,0.00016438,2]
[329335001,1718255450966,-500.0,0.00016438,2]
[329335002,1718255450979,-500.0,0.00016438,2]
[329335003,1718255450992,-500.0,0.00016438,2]
[329335004,1718255451004,-593.19,0.00016438,2]
[329335005,1718255451017,-1163.16,0.00016438,2]
[329335006,1718255451030,-500.0,0.00016438,2]
[329335007,1718255451050,-571.3,0.00016438,2]
[329335008,1718255451089,-1777.65,0.00016438,2]
[329335009,1718255451108,-500.0,0.00016438,2]
[329335010,1718255451120,-500.0,0.00016438,2]
[329335011,1718255451132,-500.0,0.00016438,2]
[329335012,1718255451146,-500.0,0.00016438,2]
[329335013,1718255451163,-502.4747346,0.00016438,2]
[329335014,1718255451175,-500.0,0.00016438,2]
[329335015,1718255451187,-500.0,0.00016438,2]
[329335016,1718255451198,-500.0,0.00016438,2]
[329335017,1718255451209,-500.0,0.00016438,2]
[329335018,1718255451221,-500.0,0.00016438,2]
[329335019,1718255451233,-502.56398246,0.00016438,2]
[329335020,1718255451245,-500.0,0.00016438,2]
[329335021,1718255451256,-500.0,0.00016438,2]
[329335022,1718255451269,-500.0,0.00016438,2]
[329335023,1718255451291,-500.0,0.00016438,2]
[329335024,1718255451317,-500.0,0.00016438,2]
[329335025,1718255451336,-500.0,0.00016438,2]
[329335026,1718255451362,-500.0,0.00016438,2]
[329335027,1718255451377,-2333.68766042,0.00016612,2]
[329335028,1718255451398,-1004.20870969,0.00016612,2]
[329335029,1718255451414,-500.0,0.0001671,2]
[329335030,1718255451432,-500.0,0.0001671,2]
[329335031,1718255451452,-500.0,0.0001671,2]
[329335032,1718255451467,-500.0,0.00016711,2]
[329335033,1718255451480,-500.0,0.00016711,2]
[329335034,1718255451519,-500.0,0.00016711,2]
[329335035,1718255451534,-644.04,0.00016711,2]
[329335036,1718255451549,-644.04,0.00016711,2]
[329335037,1718255451570,-500.0,0.00016711,2]
[329335038,1718255451589,-500.0,0.00016711,2]
[329335039,1718255451611,-500.0,0.00016712,2]
[329335040,1718255451628,-500.0,0.00016712,2]
[329335041,1718255451648,-500.0,0.00016712,2]
[329335042,1718255451663,-500.0,0.00016712,2]
[329335043,1718255451676,-479.23166351,0.00016712,2]
[329335044,1718255451690,-500.0,0.00016712,2]
[329335045,1718255451719,-500.0,0.00016712,2]
[329335046,1718255451737,-500.0,0.00016712,2]
[329335047,1718255451756,-500.0,0.00016712,2]
[329335048,1718255451770,-500.0,0.00016712,2]
[329335049,1718255451784,-500.0,0.00016712,2]
[329335050,1718255451836,-500.87878689,0.00016712,2]
[329335051,1718255451850,-500.0,0.00016712,2]
[329335052,1718255451862,-500.0,0.00016712,2]
[329335053,1718255451878,-505.7925289,0.00016712,2]
[329335054,1718255451890,-500.0,0.00016712,2]
[329335055,1718255451903,-506.72102544,0.00016712,2]
[329335056,1718255452090,-500.0,0.00016712,2]
[329335057,1718255452112,-500.0,0.00016712,2]
[329335058,1718255452123,-505.93104731,0.00016712,2]
[329335059,1718255452137,-512.49,0.00016712,2]
[329335060,1718255452150,-504.43498526,0.00016712,2]
[329335061,1718255452178,-500.0,0.00016712,2]
[329335062,1718255452232,-500.0,0.00016712,2]
[329335063,1718255452244,-500.0,0.00016712,2]
[329335064,1718255452259,-502.57913896,0.00016712,2]
[329335065,1718255452284,-500.0,0.00016712,2]
[329335066,1718255452298,-500.0,0.00016712,2]
[329335067,1718255452313,-500.0,0.00016712,2]
[329335068,1718255452324,-500.0,0.00016712,2]
[329335069,1718255452335,-500.0,0.00016712,2]
[329335070,1718255452346,-500.0,0.00016712,2]
[329335071,1718255452374,-500.0,0.00016712,2]
[329335072,1718255452411,-500.0,0.00016712,2]
[329335073,1718255452424,-500.0,0.00016712,2]
[329335074,1718255452439,-500.0,0.00016712,2]
[329335075,1718255452456,-500.0,0.00016712,2]
[329335076,1718255452482,-500.0,0.00016712,2]
[329335077,1718255452530,-500.0,0.00016712,2]
[329335078,1718255452541,-500.0,0.00016712,2]
[329335079,1718255452552,-500.0,0.00016712,2]
[329335080,1718255452563,-514.50773305,0.00016712,2]
[329335081,1718255452574,-500.0,0.00016712,2]
[329335082,1718255452587,-500.0,0.00016712,2]
[329335083,1718255452598,-500.0,0.00016712,2]
[329335084,1718255452609,-1880.94,0.00016712,2]
[329335085,1718255452620,-500.0,0.00016712,2]
[329335086,1718255452631,-500.0,0.00016712,2]
[329335087,1718255452641,-500.0,0.00016712,2]
[329335088,1718255452652,-500.0,0.00016712,2]
[329335089,1718255452662,-500.0,0.00016712,2]
[329335090,1718255452676,-500.0,0.00016712,2]
[329335091,1718255452686,-500.0,0.00016712,2]
[329335092,1718255452698,-500.0,0.00016712,2]
[329335093,1718255452708,-500.0,0.00016712,2]
[329335094,1718255452722,-506.33785986,0.00016712,2]
[329335095,1718255452753,-500.0,0.00016712,2]
[329335096,1718255452768,-500.0,0.00016712,2]
[329335097,1718255452787,-500.0,0.00016712,2]
[329335098,1718255452803,-151.03514237,0.00016712,2]
[329335099,1718255452818,-579.4,0.00016712,2]
[329335100,1718255452844,-507.47047557,0.00016712,2]
[329335101,1718255452861,-500.0,0.00016712,2]
[329335102,1718255452882,-500.0,0.00016712,2]
[329335103,1718255452892,-500.0,0.00016712,2]
[329335104,1718255452903,-500.0,0.00016712,2]
[329335105,1718255452916,-500.0,0.00016712,2]
[329335106,1718255452929,-500.0,0.00016712,2]
[329335107,1718255452940,-192.44892117,0.00016712,2]
[329335108,1718255452951,-503.22967273,0.00016712,2]
[329335109,1718255452966,-482.16911307,0.00016712,2]
[329335110,1718255452979,-500.0,0.00016712,2]
[329335111,1718255452990,-500.0,0.00016712,2]
[329335112,1718255453001,-500.0,0.00016712,2]
[329335113,1718255453012,-500.0,0.00016712,2]
[329335114,1718255453024,-1083.37,0.00016712,2]
[329335115,1718255453035,-500.0,0.00016712,2]
[329335116,1718255453048,-500.0,0.00016712,2]
[329335117,1718255453061,-500.0,0.00016712,2]
[329335118,1718255453071,-531.0,0.00016712,2]
[329335119,1718255453082,-500.0,0.00016712,2]
[329335120,1718255453096,-196.83589042,0.00016712,2]
[329335121,1718255453107,-1083.35,0.00016712,2]
[329335122,1718255453118,-963.51,0.00016712,2]
[329335123,1718255453132,-542.05,0.00016712,2]
[329335124,1718255453143,-500.0,0.00016712,2]
[329335125,1718255453154,-661.67,0.00016712,2]
[329335126,1718255453165,-500.0,0.00016712,2]
[329335127,1718255453177,-500.0,0.00016712,2]
[329335128,1718255453190,-500.0,0.00016712,2]
[329335129,1718255453202,-500.0,0.00016712,2]
[329335130,1718255453212,-315.53524883,0.00016712,2]
[329335131,1718255453223,-838.8,0.00016712,2]
[329335132,1718255453234,-533.82895435,0.00016712,2]
[329335133,1718255453245,-500.0,0.00016712,2]
[329335134,1718255453255,-443.81535722,0.00016712,2]
[329335135,1718255453272,-56.18464278,0.00016712,2]
[329335136,1718255453283,-1534.55,0.00016712,2]
[329335137,1718255453293,-500.0,0.00016712,2]
[329335138,1718255453304,-500.0,0.00016712,2]
[329335139,1718255453315,-500.0,0.00016712,2]
[329335140,1718255453327,-500.0,0.00016712,2]
[329335141,1718255453338,-500.0,0.00016712,2]
[329335142,1718255453360,-3983.94,0.00016712,2]
[329335143,1718255453372,-500.0,0.00016712,2]
[329335144,1718255453383,-550.21,0.00016712,2]
[329335145,1718255453396,-500.0,0.00016712,2]
[329335146,1718255453408,-500.0,0.00016712,2]
[329335147,1718255453423,-2579.12,0.00016712,2]
[329335148,1718255453442,-4764.33,0.00016712,2]